bitfinex-derivatives/quotes_BNBF0:USTF0_20250305
["timestamp","ask_amount","ask_price","bid_price","bid_amount"]
[1741173491093,4.02474764,602.0,601.0,0.481]
[1741173491386,4.02474764,601.99,601.0,0.481]
[1741173491595,4.02474764,601.98,601.0,0.481]
[1741173491785,5.20840576,601.97,601.0,0.481]
[1741173491990,4.02474764,601.96,601.0,0.481]
[1741173492190,4.02474764,601.95,601.0,0.481]
[1741173492491,4.02474764,601.94,601.0,0.481]
[1741173492687,4.02474764,601.93,601.0,0.481]
[1741173492901,4.02474764,601.92,601.0,0.481]
[1741173493093,4.02474764,601.91,601.0,0.481]
[1741173493289,4.02474764,601.9,601.0,0.481]
[1741173493489,4.02474764,601.89,601.0,0.481]
[1741173493695,4.02474764,601.88,600.76,1.21098633]
[1741173493888,4.02474764,601.87,600.77,0.3329061]
[1741173494088,4.02474764,601.86,600.77,0.3329061]
[1741173494291,5.20840576,601.85,600.77,0.3329061]
[1741173494493,2.54309989,601.84,600.77,0.3329061]
[1741173494688,3.72675801,601.83,600.77,0.3329061]
[1741173494893,2.54309989,601.82,600.78,0.28932491]
[1741173495094,0.92590976,601.81,600.79,0.33289502]
[1741173495294,2.10956788,601.8,600.79,0.33289502]
[1741173495494,0.92590976,601.79,600.79,0.33289502]
[1741173495696,1.18365812,601.8,600.79,0.33289502]
[1741173495895,0.92572905,601.79,600.79,0.33289502]
[1741173496092,1.18365812,601.78,600.79,0.33289502]
[1741173496698,1.48111753,601.99,600.79,0.81389502]
[1741173496893,0.28931168,601.91,600.79,0.81389502]
[1741173497095,5.20870205,601.9,600.79,0.81389502]
[1741173497291,2.54350096,601.89,600.79,0.81389502]
[1741173497598,3.56530863,602.91,600.79,0.81389502]
[1741173497599,2.11006475,601.88,600.79,0.81389502]
[1741173497800,2.54371893,601.87,600.79,0.81389502]
[1741173497998,3.72780249,601.86,600.79,0.81389502]
[1741173498300,0.92598119,601.85,600.79,0.81389502]
[1741173498499,2.11006475,601.84,600.79,0.81389502]
[1741173498697,0.92598119,601.83,600.79,0.81389502]
[1741173498899,0.92598119,601.82,600.79,0.81389502]
[1741173499199,2.11006475,601.81,600.79,0.81389502]
[1741173499397,0.92598119,601.8,600.79,0.81389502]
[1741173499593,2.11006475,601.79,600.79,0.81389502]
[1741173499792,0.92598119,601.78,600.79,0.81389502]
[1741173499994,2.11006475,601.77,600.79,0.81389502]
[1741173500198,2.54289999,601.76,600.79,0.81389502]
[1741173500392,2.54289999,601.75,600.79,0.81389502]
[1741173500597,3.72698355,601.74,600.79,0.81389502]
[1741173500799,4.02400542,601.73,600.79,0.81389502]
[1741173500999,4.02400542,601.72,600.79,0.81389502]
[1741173501192,3.72698355,601.71,600.79,0.81389502]
[1741173501395,3.72698355,601.7,600.79,0.81389502]
[1741173501595,4.02369369,601.69,600.79,0.81389502]
[1741173501796,4.02369369,601.68,600.79,0.81389502]
[1741173501998,4.02369369,601.67,600.79,0.81389502]
[1741173502299,4.02369369,601.66,600.79,0.81389502]
[1741173502502,2.54276271,601.65,600.79,0.81389502]
[1741173502706,2.54276271,601.64,600.79,0.81389502]
[1741173502901,0.92598119,601.63,600.79,0.81389502]
[1741173503101,0.92598119,601.62,600.79,0.81389502]
[1741173503403,2.11006475,601.61,600.79,0.81389502]
[1741173503709,1.18408356,601.61,600.79,0.81389502]
[1741173503901,2.10957389,601.6,600.79,0.81389502]
[1741173504096,1.18408356,601.6,600.79,0.81389502]
[1741173504296,1.18408356,601.59,600.79,0.81389502]
[1741173504900,1.18408356,601.58,600.79,0.81389502]
[1741173505296,3.09656027,601.69,600.79,0.81389502]
[1741173505502,4.02152796,601.68,600.79,0.81389502]
[1741173505702,4.02152796,601.67,600.79,0.81389502]
[1741173505906,2.54102794,601.66,600.79,0.81389502]
[1741173506104,0.92496769,601.65,600.79,0.81389502]
[1741173506399,1.18245297,601.66,600.79,0.81389502]
[1741173506600,1.18245297,601.64,600.79,0.81389502]
[1741173506804,0.92467646,601.63,600.79,0.81389502]
[1741173507006,1.18245297,601.63,600.79,0.81389502]
[1741173507705,1.61448122,601.71,600.79,0.81389502]
[1741173507902,0.92428429,601.7,600.79,0.81389502]
[1741173508106,0.92428429,601.69,600.79,0.81389502]
[1741173508405,1.18180486,601.7,600.79,0.81389502]
[1741173508603,2.10600913,601.69,600.79,0.81389502]
[1741173508906,2.53821719,601.68,600.79,0.81389502]
[1741173509105,2.53821719,601.67,600.79,0.81389502]
[1741173509301,0.92420427,601.66,600.79,0.81389502]
[1741173509503,0.92420427,601.65,600.79,0.81389502]
[1741173509708,0.92420427,601.64,600.79,0.81389502]
[1741173509900,0.92420427,601.63,600.79,0.81389502]
[1741173510206,0.92420427,601.62,600.79,0.81389502]
[1741173510406,0.92395735,601.61,600.79,0.81389502]
[1741173510600,1.18180486,601.6,600.79,0.81389502]
[1741173511210,1.18180486,601.59,600.79,0.81389502]
[1741173511811,0.28937904,601.69,600.87,1.21098633]
[1741173512011,3.72038257,601.68,600.87,1.21098633]
[1741173512211,2.53880483,601.67,600.87,1.21098633]
[1741173512411,2.53880483,601.66,600.87,1.21098633]
[1741173512705,0.92430457,601.65,600.87,1.21098633]
[1741173512913,2.53852933,601.64,600.87,1.21098633]
[1741173513105,1.18157774,601.66,600.87,1.21098633]
[1741173513106,2.53842646,601.63,600.87,1.21098633]
[1741173513314,0.9242083,601.62,600.87,1.21098633]
[1741173513513,0.92411759,601.61,600.87,1.21098633]
[1741173513719,0.92411759,601.6,600.87,1.21098633]
[1741173513914,0.92411759,601.59,600.87,1.21098633]
[1741173514119,0.92411759,601.58,600.87,1.21098633]
[1741173514322,0.92411759,601.57,600.85,1.21098633]
[1741173514517,2.10538055,601.56,600.85,1.21098633]
[1741173514727,2.10538055,601.55,600.85,1.21098633]
[1741173515014,2.10538055,601.54,600.85,1.21098633]
[1741173515222,0.92380281,601.53,600.86,0.481]
[1741173515520,0.92380281,601.52,600.86,0.481]
[1741173515719,0.92380281,601.51,600.86,0.481]
[1741173515920,1.18157774,601.51,600.86,0.481]
[1741173516215,2.10475476,601.5,600.86,0.481]
[1741173516421,1.18157774,601.5,600.86,0.481]
[1741173516716,1.18157774,601.49,600.86,0.481]
[1741173517529,0.92313724,601.53,600.86,0.481]
[1741173517722,0.92313724,601.52,600.86,0.481]
[1741173518025,0.92313724,601.51,600.86,0.481]
[1741173518219,0.92313724,601.5,600.86,0.481]
[1741173518417,0.92313724,601.49,600.86,0.481]
[1741173518622,0.92313724,601.48,600.86,0.481]
[1741173518822,2.10298085,601.47,600.86,0.481]
[1741173519023,0.92313724,601.46,600.86,0.481]
[1741173519424,1.17984361,601.45,600.86,0.481]
[1741173519823,1.17984361,601.44,600.86,0.481]
[1741173520527,1.17984361,601.43,600.86,0.481]
[1741173520924,1.17984361,601.42,600.86,0.481]
[1741173521726,0.28946208,601.45,600.86,0.481]
[1741173522422,1.17814135,601.44,600.86,0.481]
[1741173522824,1.17814135,601.43,600.86,0.481]
[1741173523728,4.00655969,601.59,600.86,0.481]
[1741173523930,0.28946329,601.45,600.86,0.481]
[1741173524132,4.00655969,601.57,600.86,0.481]
[1741173524324,4.00655969,601.56,600.86,0.481]
[1741173524525,4.00655969,601.55,600.86,0.481]
[1741173524725,2.53186579,601.54,600.86,0.481]
[1741173524927,4.00430779,601.53,600.86,0.481]
[1741173525128,4.00430779,601.52,600.86,0.481]
[1741173525432,4.00430779,601.51,600.86,0.481]
[1741173525632,4.00430779,601.5,600.86,0.481]
[1741173525830,4.00430779,601.49,600.86,0.481]
[1741173526026,4.00430779,601.48,600.86,0.481]
[1741173526225,4.00430779,601.47,600.86,0.481]
[1741173526428,4.00430779,601.46,600.86,0.481]
[1741173526637,4.00430779,601.45,600.86,0.481]
[1741173526827,2.53186579,601.44,600.86,0.481]
[1741173527027,3.70916447,601.43,600.86,0.481]
[1741173527230,2.53186579,601.42,600.86,0.481]
[1741173527531,4.00576587,601.41,600.86,0.481]
[1741173527730,5.18306455,601.4,600.86,0.481]
[1741173527937,4.00576587,601.39,600.86,0.481]
[1741173528137,3.70916447,601.38,600.86,0.481]
[1741173528331,2.53186579,601.37,600.86,0.481]
[1741173528537,0.92168369,601.36,600.86,0.481]
[1741173528738,0.92168369,601.35,600.86,0.481]
[1741173529037,0.92168369,601.34,600.86,0.481]
[1741173529232,2.09898237,601.33,600.86,0.481]
[1741173529437,0.92079109,601.32,600.86,0.481]
[1741173529636,0.92083411,601.31,600.86,0.481]
[1741173529936,0.9208189,601.3,600.86,0.481]
[1741173530136,0.9208189,601.29,600.86,0.481]
[1741173530338,0.2895259,601.34,600.86,0.481]
[1741173530339,1.17729868,601.28,600.86,0.481]
[1741173530838,1.17729868,601.27,600.86,0.481]
[1741173531237,2.09845483,601.26,600.86,0.481]
[1741173531433,0.92115615,601.25,600.86,0.481]
[1741173531631,2.09845483,601.24,600.86,0.481]
[1741173531932,1.17729868,601.23,600.86,0.481]
[1741173532638,0.98083866,601.49,600.86,0.481]
[1741173532639,1.60855561,601.31,600.86,0.481]
[1741173532837,0.28955722,601.29,600.86,0.481]
[1741173533034,0.92098814,601.28,600.86,0.481]
[1741173533234,2.09864422,601.27,600.86,0.481]
[1741173533432,0.92098814,601.26,600.86,0.481]
[1741173533633,0.92098814,601.25,600.86,0.481]
[1741173533933,0.92098814,601.24,600.86,0.481]
[1741173534239,2.09864422,601.23,600.86,0.481]
[1741173534438,0.92098814,601.22,600.86,0.481]
[1741173534639,0.92098814,601.21,600.86,0.481]
[1741173534838,2.09864422,601.2,600.86,0.481]
[1741173535040,0.92098814,601.19,600.86,0.481]
[1741173535239,1.17765608,601.2,600.86,0.481]
[1741173535240,2.52950673,601.18,600.86,0.481]
[1741173535436,2.52950673,601.17,600.86,0.481]
[1741173535638,2.52950673,601.16,600.86,0.481]
[1741173535831,2.52862963,601.15,600.86,0.481]
[1741173536039,0.92098814,601.14,600.86,0.481]
[1741173536234,1.17765608,601.15,600.86,0.481]
[1741173536439,0.9206244,601.14,600.86,0.481]
[1741173536640,0.9206244,601.13,600.86,0.481]
[1741173536839,0.9206244,601.12,600.86,0.481]
[1741173537042,0.9206244,601.11,600.86,0.481]
[1741173537241,1.17765608,601.12,600.86,0.481]
[1741173537644,2.09757445,601.11,600.86,0.481]
[1741173537843,1.17765608,601.11,600.86,0.481]
[1741173538241,0.28965724,601.16,600.86,0.481]
[1741173538540,0.9200389,601.15,600.86,0.481]
[1741173538744,0.9200389,601.14,600.86,0.481]
[1741173539046,0.9200389,601.13,600.86,0.481]
[1741173539339,0.9200389,601.12,599.82,1.21098633]
[1741173539546,2.09612417,601.11,599.84,0.33342224]
[1741173539844,2.09612417,601.1,599.84,0.33342224]
[1741173540044,0.9200389,601.09,599.85,0.28969582]
[1741173540246,1.17608527,601.08,599.87,0.33340557]
[1741173540747,0.28960782,601.15,599.87,0.33340557]
[1741173540939,2.52626013,601.14,599.87,0.33340557]
[1741173541138,2.52626013,601.13,599.87,0.33340557]
[1741173541339,2.09632464,601.12,599.87,0.33340557]
[1741173541540,0.91983574,601.11,599.87,0.33340557]
[1741173541753,1.1764889,601.12,599.87,0.33340557]
[1741173542240,0.91980917,601.11,599.87,0.33340557]
[1741173542646,0.91980917,601.11,599.88,0.482]
[1741173542842,0.91980917,601.1,599.9,0.33338889]
[1741173543346,1.1764889,601.12,599.9,0.33338889]
[1741173543551,0.91967095,601.11,599.9,0.33338889]
[1741173543748,0.91967095,601.1,599.9,0.33338889]
[1741173543948,2.09615985,601.09,599.9,0.33338889]
[1741173544148,1.1764889,601.09,599.9,0.33338889]
[1741173544347,1.1764889,601.09,599.92,1.21098633]
[1741173544549,3.077397,601.29,599.94,0.33336667]
[1741173544748,3.99680987,601.28,599.94,0.33336667]
[1741173544941,0.28966206,601.23,599.94,0.33336667]
[1741173545143,2.52527933,601.22,599.94,0.33336667]
[1741173545343,0.91944621,601.21,599.94,0.33336667]
[1741173545546,0.91944621,601.2,599.94,0.33336667]
[1741173545746,0.91944621,601.19,599.94,0.33336667]
[1741173545946,2.09512068,601.18,599.94,0.33336667]
[1741173546247,1.17567447,601.18,600.03,1.21098633]
[1741173546442,1.17567447,601.17,600.05,0.33330555]
[1741173546750,0.28961385,601.34,600.05,0.33330555]
[1741173547142,1.17595427,601.33,600.05,0.33330555]
[1741173547348,0.28961385,601.34,600.05,0.33330555]
[1741173547552,3.99745566,601.66,600.05,0.33330555]
[1741173547844,4.32987484,601.65,600.05,0.33330555]
[1741173548149,4.32988036,601.64,600.05,0.33330555]
[1741173548345,2.85838019,601.63,600.05,0.33330555]
[1741173548545,2.52594996,601.62,600.22,1.21098633]
[1741173548751,0.91969106,601.61,600.22,1.21098633]
[1741173548948,0.91969106,601.6,600.23,0.3332056]
[1741173549151,4.32990799,601.59,600.23,0.3332056]
[1741173549355,4.32991352,601.58,600.23,0.3332056]
[1741173549546,4.32991904,601.57,600.23,0.3332056]
[1741173549750,2.85841887,601.56,600.23,0.3332056]
[1741173550049,1.2521655,601.55,600.23,0.3332056]
[1741173550248,1.25217102,601.54,600.23,0.3332056]
[1741173550450,0.91969106,601.53,600.25,1.21098633]
[1741173550645,0.91969106,601.52,600.25,1.21098633]
[1741173550849,0.91969106,601.52,600.26,0.33318895]
[1741173550850,0.91969106,601.51,600.26,0.33318895]
[1741173551050,2.4281474,601.5,600.26,0.33318895]
[1741173551250,2.52594996,601.49,600.26,0.33318895]
[1741173551447,2.09564533,601.48,600.26,0.33318895]
[1741173551650,0.91969106,601.47,600.26,0.33318895]
[1741173551846,2.09564533,601.46,600.26,0.33318895]
[1741173552050,3.70190423,601.46,600.26,0.33318895]
[1741173552251,3.56715103,601.45,600.26,0.33318895]
[1741173552451,1.6062589,601.44,600.35,1.21098633]
[1741173552754,3.70190423,601.44,600.36,0.33313345]
[1741173553055,0.91969106,601.43,600.36,0.33313345]
[1741173553253,1.17595427,601.44,600.36,0.33313345]
[1741173553449,1.17595427,601.46,600.36,0.33313345]
[1741173553854,1.46550065,601.45,600.36,0.33313345]
[1741173554255,0.28954638,601.45,600.36,0.33313345]
[1741173554450,0.28954638,601.45,600.41,1.21098633]
[1741173554654,2.39164495,601.44,600.41,1.21098633]
[1741173554851,3.99922771,601.43,600.41,1.21098633]
[1741173555057,3.99922771,601.42,600.41,1.21098633]
[1741173555255,3.99922771,601.41,600.41,1.21098633]
[1741173555553,1.17595427,601.42,600.41,1.21098633]
[1741173555554,0.97945046,601.38,600.41,1.21098633]
[1741173555850,0.97945046,601.35,600.41,1.21098633]
[1741173556156,5.17518198,601.34,600.41,1.21098633]
[1741173556356,3.99922771,601.33,600.41,1.21098633]
[1741173556655,5.17518198,601.32,600.41,1.21098633]
[1741173556856,3.99922771,601.31,600.36,0.33313345]
[1741173557057,3.99922771,601.3,600.36,0.33313345]
[1741173557258,3.99922771,601.29,600.36,0.33313345]
[1741173557458,5.17518198,601.28,600.36,0.33313345]
[1741173557658,3.99922771,601.27,600.36,0.33313345]
[1741173557959,5.17518198,601.26,600.36,0.33313345]
[1741173558156,3.99922771,601.25,600.36,0.33313345]
[1741173558356,3.99922771,601.24,600.36,0.33313345]
[1741173558553,3.99922771,601.23,600.36,0.33313345]
[1741173558760,5.17518198,601.22,600.36,0.33313345]
[1741173558958,3.99922771,601.21,600.36,0.33313345]
[1741173559161,0.28954638,601.45,600.36,0.33313345]
[1741173559162,5.17518198,601.2,600.36,0.33313345]
[1741173559358,5.17518198,601.19,600.36,0.33313345]
[1741173559657,3.99922771,601.18,600.36,0.33313345]
[1741173559858,1.17595427,601.19,600.36,0.33313345]
[1741173559859,3.99922771,601.17,600.37,0.481]
[1741173560061,3.99922771,601.16,600.37,0.481]
[1741173560261,3.99922771,601.15,600.37,0.481]
[1741173560563,3.99922771,601.14,600.37,0.481]
[1741173560761,5.17518198,601.13,600.37,0.481]
[1741173560954,5.17518198,601.12,600.37,0.481]
[1741173561157,3.99922771,601.11,600.37,0.481]
[1741173561454,3.99922771,601.1,600.37,0.481]
[1741173561658,2.52727382,601.09,600.37,0.481]
[1741173561858,1.17595427,601.09,600.37,0.481]
[1741173562258,3.0824784,601.21,600.37,0.481]
[1741173562458,4.00304181,601.2,600.37,0.481]
[1741173562660,4.00304181,601.19,600.37,0.481]
[1741173562960,4.00304181,601.18,600.37,0.481]
[1741173563156,4.00304181,601.17,600.37,0.481]
[1741173563362,0.92056341,601.16,600.37,0.481]
[1741173563560,0.92056341,601.15,600.37,0.481]
[1741173563760,1.17855089,601.16,600.37,0.481]
[1741173563954,1.17855089,601.15,600.37,0.481]
[1741173564459,1.17855089,601.14,600.37,0.481]
[1741173565157,0.28961746,601.16,600.37,0.481]
[1741173565557,1.17927217,601.15,600.37,0.481]
[1741173565761,1.17927217,601.14,600.37,0.481]
[1741173566159,1.17927217,601.13,600.37,0.481]
[1741173566364,0.28960059,601.16,600.37,0.481]
[1741173566765,1.17963422,601.15,600.37,0.481]
[1741173567363,2.53287738,601.27,600.37,0.481]
[1741173567565,2.53287738,601.26,600.37,0.481]
[1741173567763,2.53287738,601.25,600.37,0.481]
[1741173567965,2.53287738,601.24,600.37,0.481]
[1741173568173,2.53287738,601.23,600.37,0.481]
[1741173568371,2.53417576,601.22,600.37,0.481]
[1741173568574,0.92135295,601.21,600.37,0.481]
[1741173568771,2.10155194,601.2,600.37,0.481]
[1741173568973,2.53410252,601.19,600.37,0.481]
[1741173569172,2.53410252,601.18,600.37,0.481]
[1741173569367,2.53410252,601.17,600.37,0.481]
[1741173569570,2.53410252,601.16,600.37,0.481]
[1741173569773,3.71430151,601.15,600.37,0.481]
[1741173569975,2.53410252,601.14,600.37,0.481]
[1741173570174,2.53410252,601.13,600.37,0.481]
[1741173570472,2.53410252,601.12,600.37,0.481]
[1741173570673,2.53410252,601.11,600.37,0.481]
[1741173570974,2.10155194,601.1,600.37,0.481]
[1741173571170,0.92135295,601.09,600.37,0.481]
[1741173571370,3.71577255,601.08,600.37,0.481]
[1741173571571,2.53553517,601.07,600.37,0.481]
[1741173571874,2.53553517,601.06,600.37,0.481]
[1741173572066,0.92135295,601.05,600.37,0.481]
[1741173572268,0.92135295,601.04,600.37,0.481]
[1741173572466,0.92135295,601.03,600.37,0.481]
[1741173572668,3.71722105,601.02,600.37,0.481]
[1741173572871,0.92237331,601.01,600.37,0.481]
[1741173573075,0.92237331,601.0,600.37,0.481]
[1741173573374,4.01286173,600.99,600.37,0.481]
[1741173573676,2.53712105,600.98,600.37,0.481]
[1741173573877,2.53712105,600.97,600.37,0.481]
[1741173574077,2.53712105,600.96,600.37,0.481]
[1741173574278,4.01177108,600.95,600.37,0.481]
[1741173574470,4.01177108,600.94,600.37,0.481]
[1741173574675,4.01177108,600.93,600.37,0.481]
[1741173574870,4.01177108,600.92,600.37,0.481]
[1741173575072,4.01177108,600.91,600.37,0.481]
[1741173575273,1.4618607,601.98,600.37,0.481]
[1741173575274,5.19197007,600.9,600.37,0.481]
[1741173575576,4.01177108,600.89,600.37,0.481]
[1741173575775,2.53712105,600.88,600.37,0.481]
[1741173575974,2.53712105,600.87,600.37,0.481]
[1741173576171,2.53712105,600.86,600.37,0.481]
[1741173576373,2.53712105,600.85,600.37,0.481]
[1741173576576,1.18019899,600.87,600.37,0.481]
[1741173576577,0.9223386,600.84,600.37,0.481]
[1741173576771,2.10253759,600.83,600.37,0.481]
[1741173577079,1.18019899,600.83,600.37,0.481]
[1741173577578,1.47450929,600.92,600.37,0.481]
[1741173577878,4.01057615,600.91,600.37,0.481]
[1741173578079,2.53606686,600.9,600.37,0.481]
[1741173578379,2.53606686,600.89,600.37,0.481]
[1741173578678,3.71813286,600.88,600.37,0.481]
[1741173578876,0.92157702,600.87,600.37,0.481]
[1741173579071,2.10364302,600.86,600.37,0.481]
[1741173579273,1.182066,600.86,600.37,0.481]
[1741173579477,0.92141773,600.85,600.37,0.481]
[1741173579678,1.182066,600.85,600.37,0.481]
[1741173580078,1.182066,600.84,600.37,0.481]
[1741173580579,0.97945046,601.16,600.37,0.481]
[1741173580781,4.00998152,601.15,600.37,0.481]
[1741173580979,5.19185302,601.14,600.37,0.481]
[1741173581182,4.00998152,601.13,600.37,0.481]
[1741173581379,4.00998152,601.12,600.37,0.481]
[1741173581583,4.00998152,601.11,600.37,0.481]
[1741173581881,4.00998152,601.1,600.37,0.481]
[1741173582081,5.19185302,601.09,600.37,0.481]
[1741173582281,4.00998152,601.08,600.37,0.481]
[1741173582581,4.00998152,601.07,600.37,0.481]
[1741173582782,5.19185302,601.06,600.37,0.481]
[1741173582974,5.19185302,601.06,600.16,0.28970185]
[1741173582975,4.00998152,601.05,600.16,0.28970185]
[1741173583180,4.00998152,601.04,600.16,0.28970185]
[1741173583477,5.19185302,601.03,600.16,0.28970185]
[1741173583678,5.19185302,601.03,599.84,1.21098633]
[1741173583679,4.00998152,601.02,599.84,1.21098633]
[1741173583879,4.00998152,601.01,600.16,0.2897332]
[1741173584184,4.00998152,601.0,599.86,0.33341112]
[1741173584377,4.00998152,600.99,599.86,0.33341112]
[1741173584681,4.01023013,600.98,599.86,0.33341112]
[1741173584882,2.53568513,600.97,599.87,0.28973923]
[1741173585185,2.53568513,600.96,599.88,0.33340001]
[1741173585483,3.71755663,600.95,599.88,0.33340001]
[1741173585682,2.53568513,600.94,599.88,0.33340001]
[1741173585877,2.53568513,600.93,599.88,0.33340001]
[1741173586078,0.92143524,600.92,599.89,0.481]
[1741173586383,2.10330674,600.91,600.0,1.21098633]
[1741173586577,0.92143524,600.9,600.01,0.33332777]
[1741173586783,0.92143524,600.89,600.01,0.33332777]
[1741173586979,0.92143524,600.88,600.01,0.33332777]
[1741173587180,0.92171534,600.87,600.01,0.33332777]
[1741173587380,1.1818715,600.88,600.01,0.33332777]
[1741173587684,2.10364696,600.87,600.01,0.33332777]
[1741173587886,1.1818715,600.86,600.01,0.33332777]
[1741173588079,1.1818715,600.85,600.01,0.33332777]
[1741173588579,1.1818715,600.84,600.01,0.33332777]
[1741173589185,1.1818715,600.83,600.01,0.33332777]
[1741173589778,2.4544226,601.19,600.01,0.33332777]
[1741173589983,0.28976095,600.95,600.01,0.33332777]
[1741173590180,2.53681457,600.94,600.01,0.33332777]
[1741173590384,3.71927209,600.93,600.01,0.33332777]
[1741173590578,2.53681457,600.92,600.01,0.33332777]
[1741173590784,2.53681457,600.91,600.01,0.33332777]
[1741173590984,2.53681457,600.9,600.01,0.33332777]
[1741173591191,1.61496515,600.89,600.01,0.33332777]
[1741173591391,2.53691477,600.88,600.01,0.33332777]
[1741173591687,2.53693145,600.87,600.01,0.33332777]
[1741173591993,3.71938897,600.86,600.01,0.33332777]
[1741173592291,2.10440714,600.85,600.01,0.33332777]
[1741173592488,0.92194962,600.84,600.01,0.33332777]
[1741173592690,0.92194962,600.83,600.01,0.33332777]
[1741173592891,1.18245752,600.84,600.01,0.33332777]
[1741173593192,0.92172666,600.83,600.01,0.33332777]
[1741173593388,1.18245752,600.82,600.01,0.33332777]
[1741173593787,1.18245752,600.81,600.01,0.33332777]
[1741173594188,0.28974406,600.95,600.01,0.33332777]
[1741173594189,1.18245752,600.8,600.01,0.33332777]
[1741173594587,1.18245752,600.79,600.01,0.33332777]
[1741173595394,1.61443717,600.91,600.01,0.33332777]
[1741173595693,3.71773933,600.9,600.01,0.33332777]
[1741173595893,2.53587315,600.89,600.01,0.33332777]
[1741173596089,2.53587315,600.88,600.01,0.33332777]
[1741173596389,2.53587315,600.87,600.01,0.33332777]
[1741173596593,2.53587315,600.86,600.01,0.33332777]
[1741173596794,0.92143598,600.85,600.01,0.33332777]
[1741173597094,2.10330216,600.84,600.01,0.33332777]
[1741173597395,1.18186618,600.84,600.01,0.33332777]
[1741173597591,1.18186618,600.83,600.01,0.33332777]
[1741173598193,1.18186618,600.82,600.01,0.33332777]
[1741173598893,1.18186618,600.81,600.01,0.33332777]
[1741173599498,1.18186618,600.8,600.01,0.33332777]
[1741173599898,1.18186618,600.79,600.01,0.33332777]
[1741173600296,1.61337723,600.86,600.01,0.33332777]
[1741173600501,0.92092565,600.85,600.01,0.33332777]
[1741173600695,0.92092565,600.84,600.01,0.33332777]
[1741173600899,1.18119719,600.84,600.01,0.33332777]
[1741173601199,1.18119719,600.83,600.01,0.33332777]
[1741173601801,1.18119719,600.82,600.01,0.33332777]
[1741173602209,1.18119719,600.81,600.01,0.33332777]
[1741173602709,1.18119719,600.8,600.01,0.33332777]
[1741173603102,1.60672388,600.88,600.11,1.21098633]
[1741173603402,0.28976819,600.89,600.11,1.21098633]
[1741173603605,1.18113174,600.88,600.11,1.21098633]
[1741173604007,1.18113174,600.87,600.11,1.21098633]
[1741173604706,3.08021094,601.0,600.11,1.21098633]
[1741173604903,0.28971753,601.01,600.11,1.21098633]
[1741173604904,2.52769964,600.99,600.11,1.21098633]
[1741173605104,3.70888174,600.98,600.01,0.33332777]
[1741173605306,0.92085029,600.97,600.01,0.33332777]
[1741173605508,1.1811821,600.96,600.01,0.33332777]
[1741173605900,0.28970667,601.13,600.01,0.33332777]
[1741173606111,2.52846857,601.12,600.01,0.33332777]
[1741173606301,2.52846857,601.11,600.01,0.33332777]
[1741173606505,2.52846857,601.1,600.01,0.33332777]
[1741173606704,1.18158013,601.12,600.01,0.33332777]
[1741173607001,0.28970667,601.13,600.01,0.33332777]
[1741173607002,2.7893279,601.11,600.01,0.33332777]
[1741173607213,1.18158013,601.11,600.01,0.33332777]
[1741173607402,1.18158013,601.1,600.32,1.21098633]
[1741173608007,1.18158013,601.09,600.32,1.21098633]
[1741173608811,1.60809908,601.18,600.32,1.21098633]
[1741173609002,0.28962349,601.19,600.32,1.21098633]
[1741173609003,2.52975484,601.17,600.32,1.21098633]
[1741173609205,3.71219184,601.16,600.32,1.21098633]
[1741173609510,0.92165576,601.15,600.37,1.21098633]
[1741173609711,2.10380332,601.14,600.37,1.21098633]
[1741173609911,1.18214756,601.14,600.37,1.21098633]
[1741173610111,1.18214756,601.13,600.37,1.21098633]
[1741173610313,1.18214756,601.13,600.38,0.48]
[1741173610811,0.98190414,601.35,600.38,0.48]
[1741173610812,1.18214756,601.12,600.38,0.48]
[1741173611714,1.18214756,601.11,600.38,0.48]
[1741173612121,1.18214756,601.1,600.38,0.48]
[1741173612309,1.18214756,601.09,600.38,0.48]
[1741173612708,1.18214756,601.08,600.38,0.48]
[1741173613107,3.0833661,601.17,600.38,0.48]
[1741173613311,2.53043657,601.16,600.38,0.48]
[1741173613512,2.53043657,601.15,600.38,0.48]
[1741173613714,0.92188977,601.14,600.38,0.48]
[1741173613910,2.10448391,601.13,600.38,0.48]
[1741173614108,0.92188977,601.12,600.38,0.48]
[1741173614308,2.10472125,601.11,600.38,0.48]
[1741173614508,1.18259414,601.11,600.38,0.48]
[1741173614814,5.18934342,601.1,600.38,0.48]
[1741173615015,4.00674928,601.09,600.38,0.48]
[1741173615211,5.18934342,601.08,600.38,0.48]
[1741173615514,4.00674928,601.07,600.27,1.21098633]
[1741173615714,1.18259414,601.08,600.27,1.21098633]